[Event "RUS-ch Men Blitz 2019"]
[Site "Sochi"]
[Date "2019.10.17"]
[Round "2.27"]
[White "Sibriaev, Aleksandr"]
[Black "Papin, Vasily"]
[Result "0-1"]
[ECO "A00"]
[WhiteElo "2238"]
[BlackElo "2481"]
[Annotator "ChessBase"]
[PlyCount "94"]
[EventDate "2019.10.17"]
[EventType "swiss"]
[EventCountry "RUS"]
[SourceTitle "playchess.com"]
[Source "ChessBase"]
[SourceQuality "1"]
[TimeControl "180+2"]

1. Nc3 {[%emt 0:00:00]} c5 {[%emt 0:00:00]} 2. e4 {[%emt 0:00:02]} a6 {[%emt 0:00:00]} 3. a4 {[%emt 0:00:02]} e6 {[%emt 0:00:01]} 4. g3 {[%emt 0:00:07]} d5 {[%emt 0:00:11]} 5. Bg2 {[%emt 0:00:11]} Nf6 {[%emt 0:00:08]} 6. d3 {[%emt 0:00:04]} Nc6 {[%emt 0:00:18]} 7. Nge2 {[%emt 0:00:08]} d4 {[%emt 0:00:48]} 8. Nb1 {[%emt 0:00:01]} e5 {[%emt 0:00:15]} 9. O-O {[%emt 0:00:06]} Bd6 {[%emt 0:00:25]} 10. Nd2 {[%emt 0:00:11]} Rb8 {[%emt 0:00:01]} 11. Nc4 {[%emt 0:00:04]} Bc7 {[%emt 0:00:00]} 12. f4 {[%emt 0:00:06]} b5 {[%emt 0:00:12]} 13. Nxe5 {[%emt 0:00:03]} Nxe5 {[%emt 0:00:02]} 14. fxe5 {[%emt 0:00:01]} Bxe5 {[%emt 0:00:05]} 15. axb5 {[%emt 0:00:07]} axb5 {[%emt 0:00:01]} 16. Bf4 {[%emt 0:00:04]} Qe7 {[%emt 0:00:11]} 17. h3 {[%emt 0:00:15]} O-O {[%emt 0:00:02]} 18. Bxe5 {[%emt 0:00:05]} Qxe5 {[%emt 0:00:01]} 19. Nf4 {[%emt 0:00:09]} c4 {[%emt 0:00:17]} 20. Qf3 {[%emt 0:00:13]} Bb7 {[%emt 0:00:08]} 21. Ra5 {[%emt 0:00:10]} Qc7 22. Rfa1 {[%emt 0:00:02]} Qb6 {[%emt 0:00:09]} 23. Qf2 {[%emt 0:00:02]} Rfd8 {[%emt 0:00:09]} 24. Kh2 {[%emt 0:00:04]} Nd7 25. Nd5 {[%emt 0:00:01]} Bxd5 {[%emt 0:00:04]} 26. exd5 {[%emt 0:00:06]} Ne5 {[%emt 0:00:15]} 27. Qf5 {[%emt 0:00:03]} Re8 {[%emt 0:00:03]} 28. Ra6 Qc5 29. Be4 {[%emt 0:00:08]} g6 {[%emt 0:00:03]} 30. Qf2 cxd3 {[%emt 0:00:02]} 31. cxd3 {[%emt 0:00:24]} Rbc8 {[%emt 0:00:02]} 32. Rf1 {[%emt 0:00:13]} f5 33. Bxf5 gxf5 {[%emt 0:00:03]} 34. Qxf5 {[%emt 0:00:03]} Qc2+ 35. Rf2 Qxd3 {[%emt 0:00:02]} 36. Qg5+ {[%emt 0:00:09]} Ng6 {[%emt 0:00:00]} 37. h4 {[%emt 0:00:22]} Rc2 {[%emt 0:00:01]} 38. Rxc2 {[%emt 0:00:02]} Qxc2+ {[%emt 0:00:01]} 39. Kh3 {[%emt 0:00:01]} Qc8+ {[%emt 0:00:00]} 40. Re6 {[%emt 0:00:03]} Rxe6 {[%emt 0:00:01]} 41. dxe6 {[%emt 0:00:01]} Qxe6+ {[%emt 0:00:01]} 42. Kh2 {[%emt 0:00:02]} Qe2+ {[%emt 0:00:07]} 43. Kh3 {[%emt 0:00:01]} Qe6+ {[%emt 0:00:02]} 44. Kh2 {[%emt 0:00:01]} Qe5 {[%emt 0:00:01]} 45. Qd8+ {[%emt 0:00:07]} Kg7 {[%emt 0:00:00]} 46. Qd7+ {[%emt 0:00:01]} Kh6 {[%emt 0:00:02]} 47. Qxb5 {[%emt 0:00:01]} Qxb5 {[%emt 0:00:01]} 0-1

[Event "RUS-ch Men Blitz 2019"]
[Site "Sochi"]
[Date "2019.10.20"]
[Round "2.28"]
[White "Belyakov, Bogdan"]
[Black "Nuristani, Iman"]
[Result "1-0"]
[ECO "C10"]
[WhiteElo "2495"]
[BlackElo "2224"]
[Annotator "ChessBase"]
[PlyCount "51"]
[EventDate "2019.10.17"]
[EventType "swiss"]
[EventCountry "RUS"]
[SourceTitle "playchess.com"]
[Source "ChessBase"]
[SourceQuality "1"]
[TimeControl "180+2"]

1. e4 {[%emt 0:00:00]} e6 {[%emt 0:00:00]} 2. d4 {[%emt 0:00:00]} d5 {[%emt 0:00:00]} 3. Nc3 {[%emt 0:00:02]} dxe4 {[%emt 0:00:00]} 4. Nxe4 {[%emt 0:00:01]} Bd7 {[%emt 0:00:00]} 5. Nf3 {[%emt 0:00:06]} Bc6 {[%emt 0:00:01]} 6. Bd3 {[%emt 0:00:05]} Nd7 {[%emt 0:00:01]} 7. O-O {[%emt 0:00:27]} Ngf6 {[%emt 0:00:01]} 8. Neg5 {[%emt 0:00:01]} Bd6 {[%emt 0:00:12]} 9. c4 {[%emt 0:00:10]} Bxf3 {[%emt 0:00:04]} 10. Qxf3 {[%emt 0:00:05]} c6 {[%emt 0:00:02]} 11. Re1 {[%emt 0:00:23]} O-O {[%emt 0:00:32]} 12. Ne4 {[%emt 0:00:10]} Nxe4 {[%emt 0:00:08]} 13. Rxe4 {[%emt 0:00:02]} g6 {[%emt 0:00:15]} 14. Bh6 {[%emt 0:00:13]} Re8 {[%emt 0:00:05]} 15. h4 {[%emt 0:00:07]} Qf6 {[%emt 0:00:07]} 16. Qe2 {[%emt 0:00:06]} Bf8 {[%emt 0:00:22]} 17. Bg5 {[%emt 0:00:03]} Qg7 {[%emt 0:00:00]} 18. h5 {[%emt 0:00:03]} Nf6 {[%emt 0:00:14]} 19. h6 {[%emt 0:00:06]} Qh8 {[%emt 0:00:04]} 20. Rf4 {[%emt 0:00:11]} Nh5 {[%emt 0:00:10]} 21. Rh4 {[%emt 0:00:01]} Be7 {[%emt 0:00:21]} 22. Rxh5 {[%emt 0:00:02]} gxh5 {[%emt 0:00:03]} 23. Be3 {[%emt 0:00:08]} Qf6 {[%emt 0:00:25]} 24. Qxh5 {[%emt 0:00:02]} Bf8 {[%emt 0:00:01]} 25. Qg4+ {[%emt 0:00:14]} Kh8 {[%emt 0:00:00]} 26. Bg5 {[%emt 0:00:01]} 1-0

[Event "RUS-ch Men Blitz 2019"]
[Site "Sochi"]
[Date "2019.10.17"]
[Round "2.29"]
[White "Gutenev, Alexander"]
[Black "Gogolev, Artem"]
[Result "1-0"]
[ECO "C67"]
[WhiteElo "2469"]
[BlackElo "2339"]
[Annotator "ChessBase"]
[PlyCount "49"]
[EventDate "2019.10.17"]
[EventType "swiss"]
[EventCountry "RUS"]
[SourceTitle "playchess.com"]
[Source "ChessBase"]
[SourceQuality "1"]
[TimeControl "180+2"]

1. e4 {[%emt 0:00:00]} e5 {[%emt 0:00:10]} 2. Nf3 {[%emt 0:00:00]} Nc6 {[%emt 0:00:01]} 3. Bb5 {[%emt 0:00:00]} Nf6 {[%emt 0:00:01]} 4. O-O {[%emt 0:00:04]} Nxe4 {[%emt 0:00:04]} 5. Re1 {[%emt 0:00:01]} Nd6 {[%emt 0:00:02]} 6. Nxe5 {[%emt 0:00:02]} Nxe5 {[%emt 0:00:04]} 7. Rxe5+ {[%emt 0:00:01]} Be7 {[%emt 0:00:02]} 8. Bf1 {[%emt 0:00:02]} O-O {[%emt 0:00:02]} 9. Nc3 {[%emt 0:00:03]} Bf6 {[%emt 0:00:09]} 10. Re1 {[%emt 0:00:01]} Re8 {[%emt 0:00:12]} 11. Nd5 {[%emt 0:00:12]} Rxe1 {[%emt 0:00:11]} 12. Qxe1 {[%emt 0:00:02]} b6 {[%emt 0:00:10]} 13. g3 {[%emt 0:00:19]} Bb7 {[%emt 0:00:01]} 14. Bg2 {[%emt 0:00:01]} Bxd5 {[%emt 0:00:21]} 15. Bxd5 {[%emt 0:00:02]} c6 {[%emt 0:00:01]} 16. Bf3 {[%emt 0:00:14]} Qc7 {[%emt 0:00:04]} 17. c3 {[%emt 0:00:09]} Re8 {[%emt 0:00:02]} 18. Qf1 {[%emt 0:00:16]} g6 {[%emt 0:00:47]} 19. d4 {[%emt 0:00:01]} c5 {[%emt 0:00:02]} 20. dxc5 {[%emt 0:00:11]} bxc5 {[%emt 0:00:08]} 21. Bf4 {[%emt 0:00:13]} Be5 {[%emt 0:00:08]} 22. Bxe5 {[%emt 0:00:01]} Rxe5 {[%emt 0:00:01]} 23. Rd1 {[%emt 0:00:02]} Ne8 {[%emt 0:00:36]} 24. Qd3 {[%emt 0:00:15]} d6 {[%emt 0:00:14]} 25. Kg2 {[%emt 0:00:03]} 1-0

[Event "RUS-ch Men Blitz 2019"]
[Site "Sochi"]
[Date "2019.10.17"]
[Round "3.2"]
[White "Sadovsky, Artem"]
[Black "Tsydypov, Zhamsaran"]
[Result "1-0"]
[ECO "A14"]
[WhiteElo "2411"]
[BlackElo "2553"]
[Annotator "ChessBase"]
[PlyCount "71"]
[EventDate "2019.10.17"]
[EventType "swiss"]
[EventCountry "RUS"]
[SourceTitle "playchess.com"]
[Source "ChessBase"]
[SourceQuality "1"]
[TimeControl "180+2"]

1. c4 {[%emt 0:00:00]} Nf6 {[%emt 0:00:00]} 2. g3 {[%emt 0:00:00]} e6 {[%emt 0:00:03]} 3. Bg2 {[%emt 0:00:01]} d5 {[%emt 0:00:01]} 4. Nf3 {[%emt 0:00:01]} Be7 {[%emt 0:00:03]} 5. O-O {[%emt 0:00:02]} O-O {[%emt 0:00:02]} 6. b3 {[%emt 0:00:01]} b6 {[%emt 0:00:13]} 7. Bb2 {[%emt 0:00:02]} Bb7 {[%emt 0:00:01]} 8. d3 {[%emt 0:00:01]} c5 {[%emt 0:00:04]} 9. Ne5 {[%emt 0:00:07]} Qc7 {[%emt 0:00:03]} 10. Nd2 {[%emt 0:00:12]} Bd6 {[%emt 0:00:10]} 11. f4 {[%emt 0:00:08]} d4 {[%emt 0:00:02]} 12. Bxb7 {[%emt 0:00:10]} Qxb7 {[%emt 0:00:01]} 13. Ndf3 {[%emt 0:00:04]} Bxe5 {[%emt 0:00:13]} 14. Nxe5 {[%emt 0:00:07]} Nbd7 {[%emt 0:00:02]} 15. Nxd7 {[%emt 0:00:09]} Qxd7 {[%emt 0:00:01]} 16. e4 {[%emt 0:00:04]} b5 {[%emt 0:00:33]} 17. Rc1 {[%emt 0:00:05]} Rac8 {[%emt 0:00:12]} 18. f5 {[%emt 0:00:11]} e5 {[%emt 0:00:25]} 19. Rc2 {[%emt 0:00:06]} Ne8 {[%emt 0:00:04]} 20. g4 {[%emt 0:00:07]} bxc4 {[%emt 0:00:01]} 21. Rxc4 {[%emt 0:00:07]} Nd6 {[%emt 0:00:02]} 22. Rc2 {[%emt 0:00:02]} f6 {[%emt 0:00:06]} 23. Bc1 {[%emt 0:00:04]} Nf7 {[%emt 0:00:15]} 24. h4 {[%emt 0:00:03]} h6 {[%emt 0:00:04]} 25. g5 {[%emt 0:00:06]} fxg5 {[%emt 0:00:05]} 26. hxg5 {[%emt 0:00:01]} hxg5 {[%emt 0:00:01]} 27. Qh5 {[%emt 0:00:03]} Rc6 {[%emt 0:00:06]} 28. Bxg5 {[%emt 0:00:06]} Nxg5 {[%emt 0:00:10]} 29. Qxg5 {[%emt 0:00:00]} Rff6 {[%emt 0:00:16]} 30. Rg2 {[%emt 0:00:07]} Qf7 {[%emt 0:00:02]} 31. Rf3 {[%emt 0:00:09]} Kf8 {[%emt 0:00:18]} 32. Rh3 {[%emt 0:00:03]} Kg8 {[%emt 0:00:09]} 33. Qh4 {[%emt 0:00:02]} Rh6 {[%emt 0:00:03]} 34. Qxh6 {[%emt 0:00:07]} Rxh6 {[%emt 0:00:01]} 35. Rxh6 {[%emt 0:00:01]} Qb7 {[%emt 0:00:03]} 36. f6 {[%emt 0:00:08]} 1-0

[Event "RUS-ch Men Blitz 2019"]
[Site "Sochi"]
[Date "2019.10.20"]
[Round "3.5"]
[White "Savitskiy, Sergey"]
[Black "Grachev, Boris"]
[Result "1/2-1/2"]
[ECO "B46"]
[WhiteElo "2407"]
[BlackElo "2621"]
[Annotator "ChessBase"]
[PlyCount "106"]
[EventDate "2019.10.17"]
[EventType "swiss"]
[EventCountry "RUS"]
[SourceTitle "playchess.com"]
[Source "ChessBase"]
[SourceQuality "1"]
[TimeControl "180+2"]

1. e4 {[%emt 0:00:00]} c5 {[%emt 0:00:00]} 2. Nf3 {[%emt 0:00:00]} e6 {[%emt 0:00:00]} 3. d4 {[%emt 0:00:00]} cxd4 {[%emt 0:00:00]} 4. Nxd4 {[%emt 0:00:01]} Nc6 {[%emt 0:00:01]} 5. Nc3 {[%emt 0:00:01]} a6 {[%emt 0:00:01]} 6. g3 {[%emt 0:00:01]} Nxd4 {[%emt 0:00:01]} 7. Qxd4 {[%emt 0:00:01]} b5 {[%emt 0:00:01]} 8. Bg2 {[%emt 0:00:07]} Bb7 {[%emt 0:00:01]} 9. O-O {[%emt 0:00:01]} Ne7 {[%emt 0:00:01]} 10. Re1 {[%emt 0:00:09]} Nc6 {[%emt 0:00:08]} 11. Qd1 {[%emt 0:00:01]} Ne5 {[%emt 0:00:32]} 12. f4 {[%emt 0:00:26]} Bc5+ {[%emt 0:00:13]} 13. Kh1 {[%emt 0:00:01]} Ng6 {[%emt 0:00:17]} 14. Qh5 {[%emt 0:00:18]} Bd4 {[%emt 0:00:19]} 15. Be3 {[%emt 0:00:18]} Bxe3 {[%emt 0:00:06]} 16. Rxe3 {[%emt 0:00:00]} O-O {[%emt 0:00:02]} 17. Rd1 {[%emt 0:00:01]} b4 {[%emt 0:00:06]} 18. Ne2 {[%emt 0:00:04]} Rc8 {[%emt 0:00:05]} 19. Nd4 {[%emt 0:00:26]} Qb6 {[%emt 0:00:16]} 20. Re2 {[%emt 0:00:10]} Qc5 {[%emt 0:00:07]} 21. Qxc5 {[%emt 0:00:46]} Rxc5 22. Nb3 Rc7 {[%emt 0:00:05]} 23. Na5 {[%emt 0:00:11]} Ba8 {[%emt 0:00:11]} 24. e5 {[%emt 0:00:01]} Ne7 {[%emt 0:00:12]} 25. Bxa8 {[%emt 0:00:04]} Rxa8 {[%emt 0:00:02]} 26. b3 {[%emt 0:00:01]} Nd5 {[%emt 0:00:06]} 27. Red2 {[%emt 0:00:17]} Rc3 {[%emt 0:00:08]} 28. Nc4 {[%emt 0:00:04]} h5 {[%emt 0:00:06]} 29. Kg1 {[%emt 0:00:01]} a5 {[%emt 0:00:03]} 30. Kf2 {[%emt 0:00:14]} a4 {[%emt 0:00:04]} 31. Re1 {[%emt 0:00:08]} axb3 {[%emt 0:00:07]} 32. axb3 {[%emt 0:00:01]} h4 {[%emt 0:00:04]} 33. Ree2 {[%emt 0:00:05]} Ra2 {[%emt 0:00:07]} 34. Nd6 {[%emt 0:00:04]} h3 {[%emt 0:00:17]} 35. Ne4 {[%emt 0:00:00]} Rc7 {[%emt 0:00:04]} 36. c4 {[%emt 0:00:01]} Rxd2 {[%emt 0:00:10]} 37. Rxd2 {[%emt 0:00:00]} Ne7 {[%emt 0:00:02]} 38. Ng5 {[%emt 0:00:01]} Nc6 {[%emt 0:00:04]} 39. Nxh3 {[%emt 0:00:02]} Ra7 {[%emt 0:00:00]} 40. Ng5 {[%emt 0:00:04]} f6 {[%emt 0:00:04]} 41. exf6 {[%emt 0:00:02]} gxf6 42. Ne4 Kf7 {[%emt 0:00:03]} 43. Nc5 {[%emt 0:00:06]} Ke7 {[%emt 0:00:01]} 44. Ne4 {[%emt 0:00:05]} f5 {[%emt 0:00:01]} 45. Ng5 {[%emt 0:00:01]} Ra3 {[%emt 0:00:02]} 46. Rb2 {[%emt 0:00:03]} Nd4 {[%emt 0:00:02]} 47. h4 {[%emt 0:00:02]} Nxb3 {[%emt 0:00:02]} 48. h5 {[%emt 0:00:01]} Nc5 {[%emt 0:00:02]} 49. Rb1 {[%emt 0:00:01]} Ra2+ {[%emt 0:00:02]} 50. Ke3 {[%emt 0:00:02]} Ra3+ {[%emt 0:00:02]} 51. Kf2 {[%emt 0:00:01]} Ra2+ {[%emt 0:00:01]} 52. Ke3 {[%emt 0:00:00]} Ra3+ {[%emt 0:00:04]} 53. Kf2 {[%emt 0:00:01]} Ra2+ {[%emt 0:00:02]} 1/2-1/2

[Event "RUS-ch Men Blitz 2019"]
[Site "Sochi"]
[Date "2019.10.17"]
[Round "3.6"]
[White "Belyakov, Bogdan"]
[Black "Lysyj, Igor"]
[Result "1-0"]
[ECO "C44"]
[WhiteElo "2495"]
[BlackElo "2596"]
[Annotator "ChessBase"]
[PlyCount "40"]
[EventDate "2019.10.17"]
[EventType "swiss"]
[EventCountry "RUS"]
[SourceTitle "playchess.com"]
[Source "ChessBase"]
[SourceQuality "1"]
[TimeControl "180+2"]

1. e4 {[%emt 0:00:00]} e5 {[%emt 0:00:00]} 2. Nf3 {[%emt 0:00:01]} Nc6 {[%emt 0:00:00]} 3. c3 {[%emt 0:00:01]} Nf6 {[%emt 0:00:05]} 4. d4 {[%emt 0:00:02]} Nxe4 {[%emt 0:00:03]} 5. d5 {[%emt 0:00:02]} Bc5 {[%emt 0:00:05]} 6. dxc6 {[%emt 0:00:02]} Bxf2+ {[%emt 0:00:26]} 7. Ke2 {[%emt 0:00:01]} Bb6 {[%emt 0:00:49]} 8. Qd5 {[%emt 0:00:02]} Nf2 {[%emt 0:00:01]} 9. Rg1 {[%emt 0:00:06]} O-O {[%emt 0:00:04]} 10. cxb7 {[%emt 0:00:02]} Bxb7 {[%emt 0:00:02]} 11. Qxb7 {[%emt 0:00:01]} Qf6 {[%emt 0:00:06]} 12. Qd5 {[%emt 0:00:21]} c6 {[%emt 0:00:21]} 13. Qxd7 {[%emt 0:00:59]} Ne4 {[%emt 0:00:30]} 14. Qg4 {[%emt 0:00:41]} Bxg1 {[%emt 0:00:23]} 15. Qxe4 {[%emt 0:00:02]} Bb6 {[%emt 0:00:02]} 16. Na3 {[%emt 0:00:09]} h6 {[%emt 0:00:13]} 17. Nc4 {[%emt 0:00:16]} Bc7 {[%emt 0:00:01]} 18. Kf2 {[%emt 0:00:06]} Qe6 {[%emt 0:00:11]} 19. Ne3 {[%emt 0:00:03]} Kh8 {[%emt 0:00:16]} 20. Bc4 {[%emt 0:00:02]} Qe7 {[%emt 0:00:02]} 1-0

[Event "RUS-ch Men Blitz 2019"]
[Site "Sochi"]
[Date "2019.10.17"]
[Round "3.7"]
[White "Yudin, Sergei"]
[Black "Apryshko, Gleb"]
[Result "1-0"]
[ECO "C50"]
[WhiteElo "2497"]
[BlackElo "2382"]
[Annotator "ChessBase"]
[PlyCount "41"]
[EventDate "2019.10.17"]
[EventType "swiss"]
[EventCountry "RUS"]
[SourceTitle "playchess.com"]
[Source "ChessBase"]
[SourceQuality "1"]
[TimeControl "180+2"]

1. e4 {[%emt 0:00:00]} e5 {[%emt 0:00:00]} 2. Nf3 {[%emt 0:00:01]} Nc6 {[%emt 0:00:00]} 3. Bc4 {[%emt 0:00:02]} Bc5 {[%emt 0:00:02]} 4. d3 {[%emt 0:00:02]} Nf6 {[%emt 0:00:06]} 5. O-O {[%emt 0:00:03]} h6 {[%emt 0:00:02]} 6. c3 {[%emt 0:00:03]} Bb6 {[%emt 0:00:24]} 7. Re1 {[%emt 0:00:08]} O-O {[%emt 0:00:13]} 8. h3 {[%emt 0:00:02]} d6 {[%emt 0:00:12]} 9. Bb3 {[%emt 0:00:06]} Ne7 {[%emt 0:00:19]} 10. Nbd2 {[%emt 0:00:02]} Ng6 {[%emt 0:00:01]} 11. Nf1 {[%emt 0:00:02]} c6 {[%emt 0:00:10]} 12. Ng3 {[%emt 0:00:16]} Re8 {[%emt 0:00:01]} 13. d4 {[%emt 0:00:04]} Be6 {[%emt 0:00:56]} 14. Bc2 {[%emt 0:00:02]} Qc7 {[%emt 0:00:18]} 15. Be3 {[%emt 0:00:03]} Rad8 {[%emt 0:00:01]} 16. Qc1 {[%emt 0:00:15]} d5 {[%emt 0:00:16]} 17. dxe5 {[%emt 0:00:48]} dxe4 {[%emt 0:00:27]} 18. Nxe4 {[%emt 0:00:19]} Bxe3 19. Nxf6+ {[%emt 0:00:08]} gxf6 {[%emt 0:00:06]} 20. Qxe3 {[%emt 0:00:02]} f5 {[%emt 0:00:03]} 21. Qxh6 1-0

[Event "RUS-ch Men Blitz 2019"]
[Site "Sochi"]
[Date "2019.10.17"]
[Round "3.8"]
[White "Glek, Igor"]
[Black "Grachev, Boris"]
[Result "0-1"]
[ECO "B40"]
[WhiteElo "2467"]
[BlackElo "2621"]
[Annotator "RC"]
[PlyCount "50"]
[EventDate "2019.10.17"]
[EventType "swiss"]
[EventCountry "RUS"]
[SourceTitle "playchess.com"]
[Source "ChessBase"]
[SourceQuality "1"]
[TimeControl "180+2"]

1. e4 {[%emt 0:00:00]} c5 {[%emt 0:00:00]} 2. Nf3 {[%emt 0:00:01]} e6 {[%emt 0:00:02]} 3. Nc3 {[%emt 0:00:01]} Nc6 {[%emt 0:00:01]} 4. Bb5 {[%emt 0:00:01]} Nd4 {[%emt 0:00:01]} 5. Bc4 {[%emt 0:00:02]} a6 {[%emt 0:00:07]} 6. Nxd4 {[%emt 0:00:04]} cxd4 {[%emt 0:00:01]} 7. Ne2 {[%emt 0:00:01]} Nf6 {[%emt 0:00:14]} 8. d3 {[%emt 0:00:02]} Bc5 {[%emt 0:00:10]} 9. O-O {[%emt 0:00:06]} O-O {[%emt 0:00:02]} 10. Bg5 {[%emt 0:00:21]} h6 {[%emt 0:00:01]} 11. Bh4 {[%emt 0:00:02]} g5 {[%emt 0:00:06]} 12. Bg3 {[%emt 0:00:01]} d5 {[%emt 0:00:01]} 13. exd5 {[%emt 0:00:11]} Nxd5 {[%emt 0:00:11]} 14. c3 {[%emt 0:00:34]} b5 {[%emt 0:00:07]} 15. cxd4 {[%emt 0:00:35]} Bb6 {[%emt 0:00:03]} 16. Bb3 {[%emt 0:00:06]} Bb7 {[%emt 0:00:01]} 17. Rc1 {[%emt 0:00:14]} Qf6 {[%emt 0:00:10]} 18. Be5 {[%emt 0:00:07]} Qg6 {[%emt 0:00:01]} 19. Qd2 {[%emt 0:00:18]} Rac8 {[%emt 0:00:12]} 20. f4 {[%emt 0:00:12]} Rxc1 {[%emt 0:00:09]} 21. Rxc1 {[%emt 0:00:14]} gxf4 {[%emt 0:00:06]} 22. Bxd5 {[%emt 0:00:05]} Bxd5 {[%emt 0:00:12]} 23. Nxf4 {[%emt 0:00:03]} Qg5 {[%emt 0:00:02]} 24. Qf2 {[%emt 0:00:19]} f6 {[%emt 0:00:22]} 25. Bd6 {[%emt 0:00:03]} e5 {[%emt 0:00:07]} 0-1

[Event "RUS-ch Men Blitz 2019"]
[Site "Sochi"]
[Date "2019.10.17"]
[Round "3.11"]
[White "Smagin, Sergey"]
[Black "Pridorozhni, Aleksei"]
[Result "1/2-1/2"]
[ECO "B22"]
[WhiteElo "2551"]
[BlackElo "2599"]
[Annotator "ChessBase"]
[PlyCount "58"]
[EventDate "2019.10.17"]
[EventType "swiss"]
[EventCountry "RUS"]
[SourceTitle "playchess.com"]
[Source "ChessBase"]
[SourceQuality "1"]
[TimeControl "180+2"]

1. e4 {[%emt 0:00:00]} c5 {[%emt 0:00:00]} 2. c3 {[%emt 0:00:00]} e6 {[%emt 0:00:02]} 3. d4 {[%emt 0:00:01]} d5 {[%emt 0:00:01]} 4. exd5 {[%emt 0:00:00]} exd5 {[%emt 0:00:01]} 5. Nf3 {[%emt 0:00:02]} Nc6 {[%emt 0:00:02]} 6. Bb5 {[%emt 0:00:01]} Bd6 {[%emt 0:00:01]} 7. dxc5 Bxc5 {[%emt 0:00:01]} 8. Nbd2 {[%emt 0:00:08]} Nge7 {[%emt 0:00:02]} 9. Nb3 {[%emt 0:00:01]} Bb6 {[%emt 0:00:01]} 10. O-O {[%emt 0:00:01]} O-O 11. Bd3 Bf5 {[%emt 0:00:13]} 12. Bg5 {[%emt 0:00:20]} Qd7 {[%emt 0:00:06]} 13. Qc2 {[%emt 0:00:11]} f6 {[%emt 0:00:21]} 14. Bf4 {[%emt 0:00:13]} Bxd3 {[%emt 0:00:05]} 15. Qxd3 {[%emt 0:00:01]} Ng6 {[%emt 0:00:03]} 16. Be3 {[%emt 0:00:32]} Nge5 {[%emt 0:00:11]} 17. Nxe5 {[%emt 0:00:02]} fxe5 {[%emt 0:00:12]} 18. Bc5 {[%emt 0:00:13]} Rf6 {[%emt 0:00:10]} 19. Rad1 {[%emt 0:00:03]} Rd8 {[%emt 0:00:03]} 20. Bxb6 {[%emt 0:00:03]} axb6 {[%emt 0:00:01]} 21. Rfe1 {[%emt 0:00:09]} Qf7 {[%emt 0:00:39]} 22. Qe3 {[%emt 0:00:13]} h5 {[%emt 0:00:17]} 23. Rd2 {[%emt 0:00:04]} h4 {[%emt 0:00:10]} 24. h3 {[%emt 0:00:07]} Rg6 {[%emt 0:00:03]} 25. Red1 {[%emt 0:00:08]} Rd7 {[%emt 0:00:08]} 26. Kh2 {[%emt 0:00:04]} Rf6 {[%emt 0:00:15]} 27. Kg1 {[%emt 0:00:13]} Rg6 {[%emt 0:00:04]} 28. Kh2 {[%emt 0:00:01]} Rf6 {[%emt 0:00:02]} 29. Kg1 {[%emt 0:00:00]} Rg6 1/2-1/2

[Event "RUS-ch Men Blitz 2019"]
[Site "Sochi"]
[Date "2019.10.20"]
[Round "3.11"]
[White "Triapishko, Alexandr"]
[Black "Bryakin, Mikhail"]
[Result "0-1"]
[ECO "A06"]
[WhiteElo "2514"]
[BlackElo "2440"]
[Annotator "ChessBase"]
[PlyCount "152"]
[EventDate "2019.10.17"]
[EventType "swiss"]
[EventCountry "RUS"]
[SourceTitle "playchess.com"]
[Source "ChessBase"]
[SourceQuality "1"]
[TimeControl "180+2"]

1. Nf3 {[%emt 0:00:00]} d5 {[%emt 0:00:00]} 2. g3 {[%emt 0:00:00]} c6 {[%emt 0:00:00]} 3. Bg2 {[%emt 0:00:00]} Nf6 {[%emt 0:00:01]} 4. c4 {[%emt 0:00:02]} Bf5 {[%emt 0:00:03]} 5. cxd5 {[%emt 0:00:02]} cxd5 {[%emt 0:00:01]} 6. Qb3 {[%emt 0:00:01]} Qb6 {[%emt 0:00:01]} 7. Qxb6 {[%emt 0:00:03]} axb6 {[%emt 0:00:00]} 8. Nc3 {[%emt 0:00:09]} Bd7 {[%emt 0:00:06]} 9. Ne5 {[%emt 0:00:09]} e6 {[%emt 0:00:02]} 10. Nxd7 {[%emt 0:00:03]} Nbxd7 {[%emt 0:00:05]} 11. O-O {[%emt 0:00:04]} Be7 {[%emt 0:00:21]} 12. d4 {[%emt 0:00:16]} O-O {[%emt 0:00:08]} 13. Bd2 {[%emt 0:00:05]} Rfc8 {[%emt 0:00:06]} 14. Rfc1 {[%emt 0:00:15]} Rc4 {[%emt 0:00:14]} 15. e3 {[%emt 0:00:03]} Rac8 {[%emt 0:00:10]} 16. Bf1 {[%emt 0:00:07]} R4c7 {[%emt 0:00:01]} 17. Nb5 {[%emt 0:00:15]} Rxc1 {[%emt 0:00:02]} 18. Rxc1 {[%emt 0:00:01]} Rxc1 {[%emt 0:00:01]} 19. Bxc1 {[%emt 0:00:00]} Kf8 {[%emt 0:00:11]} 20. Bd3 {[%emt 0:00:07]} h6 {[%emt 0:00:05]} 21. f3 {[%emt 0:00:03]} Ke8 {[%emt 0:00:04]} 22. Kf1 {[%emt 0:00:06]} Kd8 {[%emt 0:00:01]} 23. Ke2 {[%emt 0:00:02]} Nb8 {[%emt 0:00:03]} 24. a3 {[%emt 0:00:14]} Nc6 {[%emt 0:00:01]} 25. Bd2 {[%emt 0:00:03]} Na5 {[%emt 0:00:03]} 26. Bc2 {[%emt 0:00:28]} Ne8 {[%emt 0:00:33]} 27. b3 {[%emt 0:00:27]} Nd6 {[%emt 0:00:03]} 28. Nc3 {[%emt 0:00:14]} Ne8 {[%emt 0:00:01]} 29. Bc1 {[%emt 0:00:04]} Nf6 {[%emt 0:00:09]} 30. g4 {[%emt 0:00:12]} Kd7 {[%emt 0:00:08]} 31. h3 {[%emt 0:00:03]} Kc7 {[%emt 0:00:03]} 32. e4 {[%emt 0:00:08]} Nc6 {[%emt 0:00:03]} 33. Nb5+ {[%emt 0:00:02]} Kd7 {[%emt 0:00:02]} 34. e5 Ne8 35. f4 {[%emt 0:00:17]} Nc7 {[%emt 0:00:04]} 36. Bd3 {[%emt 0:00:00]} Kd8 {[%emt 0:00:07]} 37. Bb2 {[%emt 0:00:03]} Nxb5 {[%emt 0:00:04]} 38. Bxb5 {[%emt 0:00:01]} Bxa3 {[%emt 0:00:12]} 39. Bc3 {[%emt 0:00:05]} Be7 {[%emt 0:00:09]} 40. Bd3 {[%emt 0:00:02]} Bb4 {[%emt 0:00:04]} 41. Bb2 {[%emt 0:00:01]} Be7 {[%emt 0:00:08]} 42. Ke3 {[%emt 0:00:03]} Bh4 {[%emt 0:00:01]} 43. Bc3 {[%emt 0:00:02]} Bg3 {[%emt 0:00:04]} 44. b4 {[%emt 0:00:02]} Bh2 {[%emt 0:00:03]} 45. Kf2 {[%emt 0:00:03]} Bxf4 {[%emt 0:00:04]} 46. b5 {[%emt 0:00:01]} Na5 {[%emt 0:00:10]} 47. h4 {[%emt 0:00:01]} Nc4 {[%emt 0:00:07]} 48. Kf3 {[%emt 0:00:03]} Bc1 {[%emt 0:00:02]} 49. Ke2 {[%emt 0:00:01]} Bb2 {[%emt 0:00:08]} 50. Bxb2 {[%emt 0:00:02]} Nxb2 {[%emt 0:00:01]} 51. Bc2 {[%emt 0:00:01]} Nc4 {[%emt 0:00:02]} 52. Bd3 {[%emt 0:00:04]} Na5 {[%emt 0:00:05]} 53. g5 {[%emt 0:00:02]} Ke7 {[%emt 0:00:03]} 54. gxh6 {[%emt 0:00:02]} gxh6 55. Ke3 f6 {[%emt 0:00:02]} 56. exf6+ {[%emt 0:00:04]} Kxf6 {[%emt 0:00:01]} 57. Bc2 {[%emt 0:00:02]} Nc4+ {[%emt 0:00:02]} 58. Kf4 {[%emt 0:00:01]} e5+ {[%emt 0:00:03]} 59. dxe5+ {[%emt 0:00:01]} Nxe5 {[%emt 0:00:01]} 60. Ke3 {[%emt 0:00:02]} Ke6 {[%emt 0:00:05]} 61. Kf4 {[%emt 0:00:03]} Nc4 {[%emt 0:00:04]} 62. Bf5+ {[%emt 0:00:03]} Kf6 {[%emt 0:00:02]} 63. Bd3 {[%emt 0:00:02]} Nd6 {[%emt 0:00:05]} 64. Kg4 {[%emt 0:00:02]} Nf7 {[%emt 0:00:06]} 65. Kf4 {[%emt 0:00:00]} Ne5 {[%emt 0:00:00]} 66. Bc2 {[%emt 0:00:03]} Nc4 {[%emt 0:00:02]} 67. Bd3 {[%emt 0:00:02]} Ne5 {[%emt 0:00:02]} 68. Bc2 {[%emt 0:00:00]} d4 {[%emt 0:00:04]} 69. Be4 {[%emt 0:00:04]} d3 {[%emt 0:00:03]} 70. Ke3 {[%emt 0:00:01]} Ke6 {[%emt 0:00:02]} 71. Bxb7 {[%emt 0:00:03]} Kd6 {[%emt 0:00:01]} 72. Be4 {[%emt 0:00:04]} Kc5 {[%emt 0:00:01]} 73. Kd2 {[%emt 0:00:02]} Kd4 {[%emt 0:00:01]} 74. Bg2 {[%emt 0:00:02]} Nc4+ {[%emt 0:00:01]} 75. Ke1 {[%emt 0:00:01]} Ke3 {[%emt 0:00:01]} 76. Bd5 {[%emt 0:00:02]} d2+ {[%emt 0:00:01]} 0-1